bitfinex/quotes_ETHUSD_20250523
["timestamp","ask_amount","ask_price","bid_price","bid_amount"]
[1748036785426,4.74602797,2539.6,2539.5,26.34676909]
[1748036785597,4.74602797,2539.6,2539.5,25.79676909]
[1748036785798,4.74602797,2539.6,2539.5,23.472]
[1748036786042,4.74602797,2539.6,2539.5,15.472]
[1748036787001,3.93749318,2539.7,2539.3,2.32476909]
[1748036787002,4.74093809,2539.4,2539.3,2.32476909]
[1748036787202,4.74093809,2539.4,2539.3,25.79576909]
[1748036791181,0.803,2539.4,2539.3,25.79576909]
[1748036791852,4.74093809,2539.4,2539.3,25.79576909]
[1748036792048,3.93768496,2539.6,2539.3,25.79576909]
[1748036792049,3.93787584,2539.5,2539.3,25.79576909]
[1748036792361,3.93778302,2539.5,2539.3,17.79576909]
[1748036792553,3.93793809,2539.4,2539.3,17.79576909]
[1748036793746,0.803,2539.8,2539.4,4.48785174]
[1748036794053,0.05,2539.9,2539.8,4.48731789]
[1748036794382,0.7584,2540.6,2540.2,0.55]
[1748036794663,4.69454329,2540.6,2540.4,0.55]
[1748036794827,3.93623302,2540.5,2540.4,0.55]
[1748036796207,3.93638797,2540.4,2540.3,15.47]
[1748036796509,3.93623302,2540.5,2539.9,2.32476909]
[1748036796510,4.68830787,2540.0,2539.9,2.32476909]
[1748036796798,4.68846288,2539.9,2539.8,25.965]
[1748036797000,4.68846288,2539.9,2539.8,29.631]
[1748036797589,0.7513,2540.4,2539.8,29.631]
[1748036797790,3.93680893,2540.2,2539.9,2.87476909]
[1748036797992,3.93680893,2540.2,2539.9,14.67576909]
[1748036798396,3.93686454,2540.1,2539.9,14.67576909]
[1748036798589,3.93680938,2540.2,2539.9,14.67576909]
[1748036798803,3.93680938,2540.2,2540.1,0.55]
[1748036799295,3.93685287,2540.1,2540.0,0.55]
[1748036800916,4.68830787,2540.0,2539.9,14.67576909]
[1748036802714,0.7513,2540.0,2539.9,14.67576909]
[1748036802919,0.7775,2540.2,2540.0,0.55]
[1748036803122,3.93661825,2540.3,2540.0,4.49999309]
[1748036803419,3.93654292,2540.3,2540.2,0.55]
[1748036804625,3.93669789,2540.2,2540.1,2.32476909]
[1748036804809,3.93669789,2540.2,2540.1,2.87476909]
[1748036805637,0.7775,2540.4,2540.1,4.394346]
[1748036805798,3.93654292,2540.3,2540.2,0.55]
[1748036806004,3.93654292,2540.3,2540.2,15.936]
[1748036806341,3.93654292,2540.3,2540.2,15.386]
[1748036809440,3.93654292,2540.3,2540.2,15.936]
[1748036809640,3.93654292,2540.3,2540.2,18.36407691]
[1748036810562,0.7775,2540.6,2540.3,0.55]
[1748036810766,3.93638797,2540.4,2540.3,0.55]
[1748036811351,3.93630747,2540.5,2540.3,0.55]
[1748036812069,3.93638797,2540.4,2540.3,2.87476909]
[1748036812272,3.93638797,2540.4,2540.3,4.96321501]
[1748036812569,3.93638797,2540.4,2540.3,2.87476909]
[1748036812969,3.93638797,2540.4,2540.3,8.89476909]
[1748036813965,3.93638797,2540.4,2540.3,6.57]
[1748036814156,4.73708797,2540.4,2540.3,6.57]
[1748036816068,3.93638797,2540.4,2540.3,6.57]
[1748036817574,3.93638797,2540.4,2540.3,10.17797691]
[1748036818242,3.93638797,2540.4,2540.3,6.57]
[1748036818756,3.93638797,2540.4,2540.3,0.55]
[1748036819777,3.93654292,2540.3,2540.2,15.386]
[1748036819977,3.93654292,2540.3,2540.2,27.734]
[1748036820395,3.93646719,2540.4,2540.3,0.55]
[1748036821399,3.93646719,2540.4,2540.3,14.707]
[1748036822001,3.93646719,2540.4,2540.3,18.65699309]
[1748036823862,3.93632209,2540.5,2540.3,18.65699309]
[1748036824057,3.93632209,2540.5,2540.3,20.98176218]
[1748036824293,3.93638797,2540.4,2540.3,20.98176218]
[1748036824680,3.93638797,2540.4,2540.3,27.00176218]
[1748036824892,3.93638797,2540.4,2540.3,24.67699309]
[1748036829221,3.93631644,2540.5,2540.3,24.67699309]
[1748036829425,3.93631644,2540.5,2540.4,3.72502897]
[1748036829730,3.93690137,2540.1,2540.0,14.157]
[1748036830027,3.93683477,2540.2,2540.1,0.55]
[1748036831926,3.93683477,2540.2,2540.1,2.87476909]
[1748036832134,3.93658195,2540.3,2540.1,2.87476909]
[1748036832283,3.93658195,2540.3,2540.2,15.03847691]
[1748036832690,3.93624048,2540.5,2540.2,15.58847691]
[1748036833933,3.93649213,2540.4,2540.2,15.58847691]
[1748036834301,3.93654292,2540.3,2540.2,15.58847691]
[1748036834508,3.93654292,2540.3,2540.2,17.913246]
[1748036834720,4.74772371,2540.7,2540.3,0.55]
[1748036834916,3.93608843,2540.6,2540.4,2.84198719]
[1748036835092,3.93608843,2540.6,2540.5,15.379]
[1748036835431,3.93608843,2540.6,2540.5,15.929]
[1748036838818,3.93608843,2540.6,2540.5,0.55]
[1748036839039,3.93608843,2540.6,2540.5,15.929]
[1748036842317,3.93608843,2540.6,2540.5,19.53607691]
[1748036842520,3.93608843,2540.6,2540.5,15.929]
[1748036843963,3.93608843,2540.6,2540.5,30.085]
[1748036847975,3.93608843,2540.6,2540.5,14.706]
[1748036848148,4.73646288,2539.9,2539.8,15.84959685]
[1748036848358,13.60381356,2539.9,2539.8,15.84959685]
[1748036848576,12.73646288,2539.9,2539.8,15.84959685]
[1748036849075,12.73646288,2539.9,2539.8,15.378]
[1748036849434,13.10420742,2539.9,2539.8,15.378]
[1748036850629,5.10420742,2539.9,2539.8,15.378]
[1748036850897,3.93716288,2539.9,2539.8,15.378]
[1748036851271,3.93716288,2539.9,2539.8,19.32799309]
[1748036851688,3.93716288,2539.9,2539.8,19.87799309]
[1748036854004,3.93706636,2540.0,2539.9,0.55]
[1748036854364,4.73620174,2540.1,2539.9,0.55]
[1748036854365,3.93691573,2540.1,2539.9,0.55]
[1748036854775,3.93677967,2540.2,2540.1,0.55]
[1748036855005,11.93677967,2540.2,2540.1,0.55]
[1748036855386,3.93677967,2540.2,2540.1,0.55]
[1748036855812,11.93661863,2540.3,2540.1,12.349]
[1748036856510,0.7704,2540.5,2540.1,12.349]
[1748036856696,3.93632578,2540.5,2540.3,0.55]
[1748036856883,3.93632578,2540.5,2540.4,15.931]
[1748036862295,3.93616976,2540.6,2540.5,0.55]
[1748036862825,3.93616976,2540.6,2540.5,12.348]
[1748036863937,3.93616976,2540.6,2540.5,26.506]
[1748036864232,3.93616976,2540.6,2540.5,30.41420231]
[1748036868095,3.93616976,2540.6,2540.5,45.79120231]
[1748036869608,0.05,2540.9,2540.5,45.79120231]
[1748036869812,0.05,2540.9,2540.7,2.87315327]
[1748036870011,0.05,2540.9,2540.8,4.48576826]
[1748036870245,0.05,2540.9,2540.8,6.97435029]
[1748036870446,0.05,2540.9,2540.8,14.97435029]
[1748036871342,3.93468661,2541.5,2541.0,0.55]
[1748036871554,3.93468424,2541.5,2541.4,0.55]
[1748036871734,3.93468424,2541.5,2541.4,0.83731533]
[1748036871934,3.93461886,2541.6,2541.4,0.83731533]
[1748036872134,3.93461886,2541.6,2541.5,14.156]
[1748036879781,3.93461886,2541.6,2541.5,29.529]
[1748036880371,4.68681886,2541.6,2541.5,29.529]
[1748036881891,5.54894127,2541.6,2541.5,29.529]
[1748036882674,5.54894127,2541.6,2541.5,15.373]
[1748036883091,3.93576826,2540.8,2540.7,22.152]
[1748036883289,3.93576826,2540.8,2540.7,37.524]
[1748036883593,3.93576826,2540.8,2540.7,29.524]
[1748036884874,3.93576826,2540.8,2540.7,14.152]
[1748036885062,3.93576826,2540.8,2540.7,29.524]
[1748036886260,5.51610958,2540.8,2540.7,29.524]
[1748036889976,5.88259374,2540.8,2540.7,29.524]
[1748036890989,5.09545242,2540.8,2540.7,29.524]
[1748036892968,4.72896826,2540.8,2540.7,29.524]
[1748036901121,4.72896826,2540.8,2540.7,15.372]
[1748036905209,3.93576826,2540.8,2540.7,15.372]
[1748036905530,3.93566676,2540.9,2540.8,0.7682]
[1748036905736,3.93566676,2540.9,2540.8,14.46753533]
[1748036906426,3.93566676,2540.9,2540.8,15.01753533]
[1748036906626,4.30138912,2541.1,2540.8,15.01753533]
[1748036906627,3.93552178,2541.0,2540.9,0.55]
[1748036907197,3.93552178,2541.0,2540.9,2.87315327]
[1748036907395,3.93552178,2541.0,2540.9,6.14442213]
[1748036908439,3.93539054,2541.1,2540.9,6.14442213]
[1748036908638,3.93523869,2541.2,2540.9,6.92452213]
[1748036908940,3.93452943,2541.6,2541.0,1.3301]
[1748036909142,3.93524636,2541.2,2541.1,12.347]
[1748036909341,3.93524636,2541.2,2541.1,43.74715221]
[1748036909640,0.36692856,2541.5,2541.2,0.7801]
[1748036909844,4.30168467,2541.5,2541.2,0.7801]
[1748036910038,3.93475611,2541.5,2541.2,0.7801]
[1748036910538,3.93483906,2541.4,2541.3,2.32315327]
[1748036910707,3.93475845,2541.5,2541.3,5.36651893]
[1748036910904,3.93475845,2541.5,2541.3,3.04336566]
[1748036911148,3.93483906,2541.4,2541.3,3.59336566]
[1748036912646,3.93472318,2541.5,2541.4,0.55]
[1748036912942,3.93472318,2541.5,2541.4,2.87315327]
[1748036913237,3.93472318,2541.5,2541.4,3.54281516]
[1748036915048,0.05,2541.9,2541.4,11.54281516]
[1748036915250,0.05,2541.9,2541.8,11.63665327]
[1748036915460,0.05,2541.9,2541.8,27.00565327]
[1748036915663,0.05,2541.9,2541.8,30.09966339]
[1748036916040,3.98406506,2541.9,2541.8,27.22651012]
[1748036916241,3.98406506,2541.9,2541.8,15.369]
[1748036916568,4.74726506,2541.9,2541.8,15.369]
[1748036917638,3.98406506,2541.9,2541.8,15.369]
[1748036917857,0.05,2541.9,2541.8,16.7473]
[1748036918178,0.05,2541.9,2541.8,24.7473]
[1748036918373,0.05,2541.9,2541.8,27.45434533]
[1748036918566,3.98406506,2541.9,2541.8,27.45434533]
[1748036920141,0.05,2541.9,2541.8,27.45434533]
[1748036920357,0.05,2541.9,2541.8,19.45434533]
[1748036923993,3.98406506,2541.9,2541.8,18.62604533]
[1748036924168,3.93421984,2541.8,2541.7,6.02]
[1748036924373,3.93421984,2541.8,2541.7,21.376]
[1748036924598,3.93421984,2541.8,2541.7,15.356]
[1748036925094,3.93421984,2541.8,2541.7,15.906]
[1748036925292,3.93421984,2541.8,2541.7,4.7780386]
[1748036925467,3.98413389,2541.9,2541.8,0.55]
[1748036926190,3.93421984,2541.8,2541.7,27.5830386]
[1748036926401,3.93421984,2541.8,2541.7,28.1330386]
[1748036927082,3.93421984,2541.8,2541.7,23.355]
[1748036927286,3.93421984,2541.8,2541.7,15.355]
[1748036927988,3.93421984,2541.8,2541.7,15.905]
[1748036930210,3.93421984,2541.8,2541.7,18.22815327]
[1748036937651,3.93421984,2541.8,2541.7,32.37715327]
[1748036941528,3.93421984,2541.8,2541.7,29.504]
[1748036942352,3.93421984,2541.8,2541.7,30.48337681]
[1748036943058,3.93421984,2541.8,2541.7,29.504]
[1748036945358,3.93421984,2541.8,2541.7,31.82715327]
[1748036945985,3.98414787,2541.9,2541.7,32.58015327]
[1748036946190,3.98414787,2541.9,2541.8,0.55]
[1748036949071,4.35211658,2541.9,2541.8,0.55]
[1748036949278,4.35211658,2541.9,2541.8,4.46501533]
[1748036949983,4.35211658,2541.9,2541.8,6.7881686]
[1748036952506,4.35211658,2541.9,2541.8,6.2381686]
[1748036952712,4.35211658,2541.9,2541.8,2.32315327]
[1748036954988,0.41796871,2541.9,2541.8,16.89315327]
[1748036955195,0.05,2541.9,2541.8,17.71695327]
[1748036956986,0.05,2541.9,2541.8,18.09313399]
[1748036957184,0.05,2541.9,2541.8,22.04312708]
[1748036958389,0.05,2541.9,2541.8,21.66694636]
[1748036962117,0.05,2541.9,2541.8,13.66694636]
[1748036964003,0.05,2541.9,2541.8,17.6011662]
[1748036965708,0.05,2541.9,2541.8,24.63314636]
[1748036965902,0.05,2541.9,2541.8,28.5673662]
[1748036968218,0.05,2541.9,2541.8,28.94283985]
[1748036970102,0.05,2541.9,2541.8,28.5673662]
[1748036975154,0.05,2541.9,2541.8,12.84314636]
[1748036975325,3.98406506,2541.9,2541.8,39.98114636]
[1748036975533,3.98406506,2541.9,2541.8,12.84314636]
[1748036975741,3.98406506,2541.9,2541.8,28.19214636]
[1748036976542,3.98406506,2541.9,2541.8,25.86899309]
[1748036977864,3.98406506,2541.9,2541.8,19.84899309]
[1748036983975,0.05,2541.9,2541.8,19.84899309]
[1748036984183,3.98406506,2541.9,2541.8,19.84899309]
[1748036987788,0.05,2541.9,2541.8,19.84899309]
[1748036988149,3.98406506,2541.9,2541.8,19.84899309]
[1748036990704,3.98406506,2541.9,2541.7,16.47215327]
[1748036990705,3.93421984,2541.8,2541.7,16.47215327]
[1748036990869,4.73741984,2541.8,2541.7,29.488]
[1748036992899,4.73741984,2541.8,2541.7,29.489]
[1748036993775,3.98413108,2541.9,2541.8,0.55]
[1748036995489,3.93421984,2541.8,2541.7,14.699]
[1748036995800,3.93421984,2541.8,2541.7,30.039]
[1748036995986,3.93421984,2541.8,2541.7,33.98899309]
[1748036996189,3.98412955,2541.9,2541.7,33.98899309]
[1748036996409,0.05,2541.9,2541.8,0.55]
[1748036997702,3.98406506,2541.9,2541.8,0.55]
[1748037000310,3.98406506,2541.9,2541.8,4.49999309]
[1748037001496,3.93421984,2541.8,2541.7,33.43899309]
[1748037001702,3.93421984,2541.8,2541.7,30.039]
[1748037002076,3.98406506,2541.9,2541.8,0.55]
[1748037002574,0.05,2541.9,2541.8,0.55]
[1748037003998,0.05,2541.9,2541.8,9.3817]
[1748037004200,0.05,2541.9,2541.8,21.67484636]
[1748037004516,0.05,2541.9,2541.8,25.6090662]
[1748037004701,0.05,2541.9,2541.8,27.93221947]
[1748037004901,3.98255066,2542.9,2542.5,0.55]
[1748037005088,3.98255066,2542.9,2542.7,2.32315327]
[1748037005089,3.93276798,2542.8,2542.7,2.32315327]
[1748037006180,3.93276798,2542.8,2542.7,16.47115327]
[1748037006816,3.98260515,2542.9,2542.8,0.55]
[1748037013508,0.05,2542.9,2542.8,0.55]
[1748037014026,3.98251799,2542.9,2542.8,0.55]
[1748037016613,0.05,2542.9,2542.8,6.57]
[1748037016814,3.98251799,2542.9,2542.8,6.57]
[1748037017009,3.98251799,2542.9,2542.8,10.40821533]
[1748037017230,3.93267264,2542.8,2542.7,14.148]
[1748037019936,4.73807264,2542.8,2542.7,14.148]
[1748037025911,5.10485755,2542.8,2542.7,14.148]
[1748037029726,4.7148273,2542.7,2542.6,15.341]
[1748037029906,7.19320758,2542.7,2542.6,15.341]
[1748037030349,7.55999249,2542.7,2542.6,15.341]
[1748037031431,3.93375555,2542.1,2542.0,14.145]
[1748037031631,3.93375555,2542.1,2542.0,29.468]
[1748037046786,3.93375555,2542.1,2542.0,30.018]
[1748037046944,3.93375555,2542.1,2542.0,33.96799309]
[1748037049703,3.93375555,2542.1,2542.0,34.76309309]
[1748037052399,3.93375555,2542.1,2542.0,30.8131]
[1748037052575,3.93375555,2542.1,2542.0,30.018]
[1748037055593,3.93375555,2542.1,2542.0,29.468]
[1748037055759,4.75285555,2542.1,2542.0,29.45]
[1748037055957,4.75285555,2542.1,2542.0,14.145]
[1748037056178,5.62150458,2542.1,2542.0,29.45]
[1748037056862,5.98971156,2542.1,2542.0,29.45]
[1748037057082,5.12106253,2542.1,2542.0,29.45]
[1748037060665,4.30196253,2542.1,2542.0,29.45]
[1748037061188,4.30196253,2542.1,2542.0,30.0]
[1748037061601,3.93375555,2542.1,2542.0,30.0]
[1748037062292,3.93375555,2542.1,2542.0,29.45]
[1748037063278,4.72925555,2542.1,2542.0,29.45]
[1748037064501,5.09715747,2542.1,2542.0,29.45]
[1748037072695,4.30165747,2542.1,2542.0,29.45]
[1748037083243,4.30165747,2542.1,2542.0,15.305]
[1748037085929,3.93421984,2541.8,2541.7,25.94]
[1748037086143,3.93421984,2541.8,2541.7,41.224]
[1748037088628,3.93421984,2541.8,2541.7,29.433]
[1748037088835,3.93421984,2541.8,2541.7,41.224]
[1748037090416,3.93421984,2541.8,2541.7,14.149]
[1748037090622,3.93421984,2541.8,2541.7,41.224]
[1748037092440,3.93421984,2541.8,2541.7,46.52219309]
[1748037096819,3.93406506,2541.9,2541.8,0.55]
[1748037097023,4.71473447,2542.4,2541.8,2.40511829]
[1748037097341,4.71473447,2542.4,2542.0,2.40511829]
[1748037097342,3.93375555,2542.1,2542.0,2.40511829]
[1748037097544,3.93375555,2542.1,2542.0,0.55]
[1748037102253,3.93375555,2542.1,2542.0,1.39251183]
[1748037112120,3.93375555,2542.1,2542.0,16.64751183]
[1748037112429,3.93375555,2542.1,2542.0,1.39251183]
[1748037112760,3.93375555,2542.1,2542.0,27.594]
[1748037120659,3.93375555,2542.1,2542.0,41.741]
[1748037120867,3.93375555,2542.1,2542.0,42.4932]
[1748037121566,3.93375555,2542.1,2542.0,41.741]
[1748037126950,3.93375555,2542.1,2542.0,42.4932]
[1748037127155,3.93375555,2542.1,2542.0,46.44319309]
[1748037139998,3.93375555,2542.1,2542.0,48.29831138]
[1748037141601,3.93375555,2542.1,2542.0,21.25431138]
[1748037141816,3.93375555,2542.1,2542.0,48.27031138]
[1748037144414,3.93369222,2542.2,2542.1,0.55]
[1748037145490,3.93369222,2542.2,2542.1,4.49999309]
[1748037146537,0.8423,2542.9,2542.3,0.55]
[1748037146823,3.98256263,2542.9,2542.8,1.85511829]
[1748037147116,3.98256263,2542.9,2542.8,28.87011829]
[1748037147275,4.35070448,2542.9,2542.8,28.87011829]
[1748037148903,3.98256263,2542.9,2542.8,28.87011829]
[1748037150715,3.98256263,2542.9,2542.8,43.01511829]
[1748037150916,3.98256263,2542.9,2542.8,45.20325417]
[1748037151092,3.98256263,2542.9,2542.8,45.75325417]
[1748037151291,0.05,2542.9,2542.8,46.51615417]
[1748037152616,0.05,2542.9,2542.8,50.44882681]
[1748037153413,0.05,2542.9,2542.8,50.82299148]
[1748037153735,0.05,2542.9,2542.8,51.28368675]
[1748037155239,0.05,2542.9,2542.8,59.10853817]
[1748037155869,0.05,2542.9,2542.8,55.17286553]
[1748037158304,0.05,2542.9,2542.8,59.10553817]
[1748037158748,0.05,2542.9,2542.8,55.17286553]
[1748037158944,0.05,2542.9,2542.8,59.10553817]
[1748037162237,4.70525612,2543.6,2543.2,0.55]
[1748037162418,3.93162508,2543.5,2543.3,15.67021925]
[1748037163242,3.93162508,2543.5,2543.4,0.55]
[1748037163845,3.9317449,2543.4,2543.3,15.67021925]
[1748037164047,3.93164531,2543.5,2543.3,28.00421925]
[1748037164921,3.93169352,2543.5,2543.3,28.00421925]
[1748037166661,3.9317449,2543.4,2543.3,28.00421925]
[1748037166852,3.93169352,2543.5,2543.3,28.00421925]
[1748037167564,3.93122672,2543.8,2543.5,0.7648]
[1748037167764,0.05,2543.9,2543.6,2.86581356]
[1748037167940,3.98104189,2543.9,2543.6,2.86581356]
[1748037168148,0.05,2543.9,2543.6,2.86581356]
[1748037168331,3.9312357,2543.8,2543.6,2.86581356]
[1748037168631,3.9312812,2543.7,2543.6,2.86581356]
[1748037168966,3.9312812,2543.7,2543.6,3.53207524]
[1748037172103,3.9312812,2543.7,2543.6,15.31507524]
[1748037172894,3.98103452,2543.9,2543.6,15.31507524]
[1748037172895,0.05,2543.9,2543.6,25.26642567]
[1748037173098,0.05,2543.9,2543.8,2.86581356]
[1748037173258,0.05,2543.9,2543.8,18.84141356]
[1748037173460,0.05,2543.9,2543.8,26.72253331]
[1748037173788,0.05,2543.9,2543.8,30.79140665]
[1748037174555,0.05,2543.9,2543.8,42.57440665]
[1748037175760,3.93055054,2544.2,2544.1,0.7836]
[1748037175761,3.93051803,2544.2,2544.1,0.7836]
[1748037175993,3.93051803,2544.2,2544.1,3.09941356]
[1748037176173,3.93029252,2544.4,2544.2,0.55]
[1748037176374,3.93029252,2544.4,2544.3,17.50681356]
[1748037178711,3.93002874,2544.6,2544.5,1.3383]
[1748037178877,3.93002874,2544.6,2544.5,2.86581356]
[1748037179078,3.93002874,2544.6,2544.5,3.65411356]
[1748037179419,3.92989074,2544.6,2544.5,7.51682492]
[1748037180229,3.92986633,2544.7,2544.5,7.51682492]
[1748037180377,3.92986633,2544.7,2544.6,2.31581356]
[1748037180720,3.92986633,2544.7,2544.6,0.7883]
[1748037180922,3.92966997,2544.8,2544.7,0.55]
[1748037181064,3.92966997,2544.8,2544.7,42.76447625]
[1748037181269,3.92958189,2544.8,2544.7,42.76447625]
[1748037181494,3.92958189,2544.8,2544.7,15.79647625]
[1748037181693,3.92958189,2544.8,2544.7,14.136]
[1748037181903,4.74218189,2544.8,2544.7,29.324]
[1748037182102,3.93097212,2543.9,2543.8,25.916]
[1748037182306,3.93097212,2543.9,2543.8,29.324]
[1748037182520,3.93097212,2543.9,2543.8,14.136]
[1748037182729,5.52975368,2543.9,2543.8,29.324]
[1748037183089,4.74480872,2543.1,2543.0,14.60618341]
[1748037183407,3.93251799,2542.9,2542.8,0.62517294]
[1748037183610,5.5316072,2542.9,2542.8,0.62517294]
[1748037183817,5.5316072,2542.9,2542.6,15.187]
[1748037183818,3.9328273,2542.7,2542.6,15.187]
[1748037184021,3.9328273,2542.7,2542.2,14.136]
[1748037184022,4.7454273,2542.7,2542.2,14.136]
[1748037184188,4.74604609,2542.3,2542.2,14.136]
[1748037186059,4.74604609,2542.3,2542.2,29.323]
[1748037192985,5.61398077,2542.3,2542.2,29.323]
[1748037193523,5.61398077,2542.3,2542.2,14.136]
[1748037193736,5.61398077,2542.3,2542.2,29.332]
[1748037193938,5.61398077,2542.3,2542.2,14.136]
[1748037194109,5.61398077,2542.3,2542.2,29.332]
[1748037195450,5.61398077,2542.3,2542.2,14.136]
[1748037198397,4.74604609,2542.3,2542.2,14.136]
[1748037201137,4.74604609,2542.3,2542.2,29.317]
[1748037207029,4.74604609,2542.3,2542.2,15.181]
[1748037211933,5.11138965,2542.3,2542.2,15.181]
[1748037212138,3.93360081,2542.2,2542.1,0.05]
[1748037212337,4.83806985,2542.2,2542.1,15.233]
[1748037213250,5.20341341,2542.2,2542.1,15.233]
[1748037216162,5.20341341,2542.2,2542.1,0.05]
[1748037216346,5.20341341,2542.2,2542.1,15.234]
[1748037216542,5.20341341,2542.2,2542.1,0.05]
[1748037216734,5.99821341,2542.2,2542.1,0.05]
[1748037224356,13.99821341,2542.2,2542.1,0.05]
[1748037226359,4.70604874,2541.2,2540.4,16.62970671]
[1748037226545,13.17665361,2541.2,2540.4,16.62970671]
[1748037226758,13.17665361,2541.2,2540.4,15.80870671]
[1748037227063,13.54199717,2541.2,2540.4,15.80870671]
[1748037227235,3.93623302,2540.5,2540.4,15.80870671]
[1748037227662,11.93623302,2540.5,2540.4,15.79670671]
[1748037227966,13.96589998,2540.5,2540.4,0.62470671]
[1748037228283,11.93654292,2540.3,2540.2,15.174]
[1748037228942,11.93669789,2540.2,2540.1,0.05]
[1748037229148,12.70759789,2540.2,2540.1,15.224]
[1748037229351,14.80218742,2540.2,2540.1,0.05]
[1748037229581,15.16753098,2540.2,2540.1,0.05]
[1748037231361,15.71753098,2540.2,2540.1,0.05]
[1748037232892,15.16753098,2540.2,2540.1,0.05]
[1748037233358,20.55063847,2540.2,2540.1,0.05]
[1748037233559,3.93824826,2539.2,2539.1,0.05]
[1748037233859,4.80297423,2539.2,2539.1,0.05]
[1748037234280,5.57387423,2539.2,2539.1,0.05]
[1748037234887,5.93840755,2539.2,2539.1,0.05]
[1748037235674,5.57387423,2539.2,2539.1,0.05]
[1748037236494,5.57387423,2539.2,2538.1,26.003]
[1748037236495,3.93979985,2538.2,2538.1,14.205]
[1748037236794,3.93979985,2538.2,2538.1,29.385]
[1748037237999,3.93979985,2538.2,2538.1,29.389]
[1748037240603,3.93979985,2538.2,2538.1,29.392]
[1748037242616,4.26804669,2538.2,2538.1,29.392]
[1748037242808,5.16737763,2538.2,2538.1,29.392]
[1748037243186,5.16737763,2538.2,2538.1,29.394]
[1748037244087,5.16737763,2538.2,2538.1,0.05]
[1748037244286,5.95297763,2538.2,2538.1,0.05]
[1748037246296,10.08497763,2538.2,2538.1,0.05]
[1748037246523,5.95297763,2538.2,2538.1,0.05]
[1748037247685,14.50297763,2538.2,2538.1,0.05]
[1748037249408,14.8650557,2538.2,2538.1,0.05]
[1748037250182,3.94135267,2537.2,2537.1,0.05]
[1748037250382,13.49313478,2537.2,2537.1,0.05]
[1748037252923,13.16488794,2537.2,2537.1,0.05]
[1748037255088,9.77353527,2537.2,2536.1,0.05]
[1748037255396,3.94290671,2536.2,2536.1,0.05]
[1748037255620,4.81042468,2536.2,2536.1,0.05]
[1748037256123,14.14992468,2536.2,2536.1,0.05]
[1748037256694,14.51357665,2536.2,2536.1,0.05]
[1748037257604,3.94446197,2535.2,2535.1,0.05]
[1748037257798,3.94446197,2535.2,2535.1,15.358]
[1748037259121,3.94446197,2535.2,2535.1,15.362]
[1748037260182,4.73334013,2535.2,2535.1,0.05]
[1748037260421,3.94446197,2535.2,2535.1,0.05]
[1748037261791,16.55036197,2535.2,2535.1,0.05]
[1748037262330,15.76246197,2535.2,2535.1,0.05]
[1748037263836,23.76246197,2535.2,2535.1,0.05]
[1748037264047,29.93346946,2535.2,2535.1,0.05]
[1748037264330,13.28391846,2534.2,2534.1,0.05]
[1748037264537,29.93502595,2534.2,2534.1,0.05]
[1748037264684,30.29796701,2534.2,2534.1,0.05]
[1748037265055,27.09939912,2534.2,2534.1,0.05]
[1748037265439,27.09939912,2534.2,2533.1,0.05]
[1748037265440,3.94757618,2533.2,2533.1,0.05]
[1748037266346,12.49757618,2533.2,2533.1,0.05]
[1748037266915,24.31757618,2533.2,2533.1,0.05]
[1748037267114,25.57922942,2533.2,2533.1,0.05]
[1748037267316,13.20922942,2533.2,2533.1,0.05]
[1748037267518,5.20922942,2533.2,2533.1,0.05]
[1748037267927,13.75922942,2533.2,2533.1,0.05]
[1748037270057,25.58322942,2533.2,2533.1,0.05]
[1748037274635,3.94757618,2533.2,2533.1,0.05]
[1748037275167,4.69987618,2533.2,2533.1,0.05]
[1748037275469,3.94757618,2533.2,2533.1,0.05]
[1748037277861,4.49757618,2533.2,2533.1,0.05]
[1748037278071,19.74087618,2533.2,2533.1,0.05]
[1748037278272,3.94913513,2532.2,2531.9,15.892]
[1748037278977,3.94913513,2532.2,2531.7,14.197]
[1748037279285,11.94913513,2532.2,2531.4,15.894]
[1748037279734,12.49913513,2532.2,2531.4,15.894]
[1748037280173,11.94913513,2532.2,2531.4,15.894]
[1748037280385,11.94913513,2532.2,2531.1,0.05]
[1748037280386,3.95069532,2531.2,2531.1,0.05]
[1748037280554,11.95069532,2531.2,2531.1,0.05]
[1748037281315,3.95069532,2531.2,2531.1,0.05]
[1748037281846,3.95069532,2531.2,2531.1,16.506]
[1748037282040,3.95069532,2531.2,2531.1,0.05]
[1748037282246,4.74082043,2531.2,2531.1,16.51]
[1748037282444,4.74082043,2531.2,2531.1,0.05]
[1748037283281,0.7523,2529.9,2528.0,0.005]
[1748037283585,4.50553973,2528.1,2528.0,0.005]
[1748037283743,3.95553973,2528.1,2528.0,0.005]
[1748037283973,3.95553973,2528.1,2528.0,3.82823765]
[1748037284202,3.95553973,2528.1,2528.0,0.005]
[1748037284403,3.95553973,2528.1,2528.0,18.94]
[1748037284603,3.95406152,2529.1,2528.1,0.7537]
[1748037284822,3.95211543,2530.3,2528.7,5.06828402]
[1748037285132,0.32824684,2530.2,2529.3,0.7537]
[1748037285423,3.95335046,2529.5,2529.4,33.154]
[1748037285969,0.05,2529.9,2529.4,33.154]
[1748037286229,0.05,2529.9,2529.5,3.39077]
[1748037286230,3.95304501,2529.7,2529.5,3.39077]
[1748037286515,4.00272613,2529.9,2529.3,5.82198402]
[1748037286516,3.95319418,2529.6,2529.3,5.82198402]
[1748037286809,3.95288165,2529.8,2529.3,5.82198402]
[1748037286810,3.95288165,2529.8,2529.4,33.154]
[1748037287013,0.05,2529.9,2529.4,33.154]
[1748037287215,3.95335046,2529.5,2529.4,33.154]
[1748037287417,3.95312647,2529.7,2529.4,33.154]
[1748037287615,0.05,2529.9,2529.5,3.39077]
[1748037287917,0.05,2529.9,2529.6,5.06828402]
[1748037288211,4.00274591,2529.9,2529.6,5.06828402]
[1748037288515,0.05,2529.9,2529.8,0.55]
[1748037288813,0.05,2529.9,2529.8,1.1870384]
[1748037289214,0.05,2530.9,2529.8,9.1870384]
[1748037289517,0.05,2530.9,2530.2,5.06828402]
[1748037289884,0.05,2530.9,2530.4,0.55]